fUSD/lending_fUSD_20240324
["ID","MTS","AMOUNT","RATE_DAILY","PERIOD"]
[320344267,1711313489004,-500.0,0.00019726,2]
[320344268,1711313489015,-500.0,0.00019726,2]
[320344269,1711313489026,-1924.53,0.00019726,2]
[320344270,1711313489036,-500.0,0.00019726,2]
[320344271,1711313489047,-500.0,0.00019726,2]
[320344272,1711313489056,-500.0,0.00019726,2]
[320344273,1711313489066,-502.58969606,0.00019726,2]
[320344274,1711313489076,-500.0,0.00019726,2]
[320344275,1711313489086,-500.0,0.00019726,2]
[320344276,1711313489097,-500.0,0.00019726,2]
[320344277,1711313489107,-696.79,0.00019726,2]
[320344278,1711313489117,-500.0,0.00019726,2]
[320344279,1711313489128,-716.1,0.00019726,2]
[320344280,1711313489138,-1757.56,0.00019726,2]
[320344281,1711313489149,-500.0,0.00019726,2]
[320344282,1711313489160,-533.66,0.00019726,2]
[320344283,1711313489171,-500.0,0.00019726,2]
[320344284,1711313489182,-1500.6,0.00019726,2]
[320344285,1711313489192,-501.65758583,0.00019726,2]
[320344286,1711313489206,-2503.76,0.00019726,2]
[320344287,1711313489216,-500.0,0.00019726,2]
[320344288,1711313489226,-1899.56,0.00019726,2]
[320344289,1711313489237,-500.0,0.00019726,2]
[320344290,1711313489247,-2034.79,0.00019726,2]
[320344291,1711313489258,-438.39369048,0.00019726,2]
[320344292,1711313489269,-500.0,0.00019726,2]
[320344293,1711313489279,-500.0,0.00019726,2]
[320344294,1711313489290,-1783.72,0.00019726,2]
[320344295,1711313489301,-1210.64,0.00019726,2]
[320344296,1711313489312,-567.77,0.00019726,2]
[320344297,1711313489323,-500.0,0.00019726,2]
[320344298,1711313489334,-500.0,0.00019726,2]
[320344299,1711313489345,-504.95583726,0.00019726,2]
[320344300,1711313489671,-500.0,0.00019726,2]
[320344301,1711313489687,-1312.17,0.00019726,2]
[320344302,1711313489696,-198.85768929,0.00019726,2]
[320344303,1711313489707,-710.57,0.00019726,2]
[320344304,1711313489717,-500.0,0.00019726,2]
[320344305,1711313489727,-500.0,0.00019726,2]
[320344306,1711313489736,-503.64620151,0.00019726,2]
[320344307,1711313489746,-844.23,0.00019726,2]
[320344308,1711313489756,-500.0,0.00019726,2]
[320344309,1711313489767,-760.19,0.00019726,2]
[320344310,1711313489776,-500.0,0.00019726,2]
[320344311,1711313489786,-506.67175914,0.00019726,2]
[320344312,1711313489795,-500.0,0.00019726,2]
[320344313,1711313489806,-500.0,0.00019726,2]
[320344314,1711313489815,-500.0,0.00019726,2]
[320344315,1711313489825,-500.0,0.00019726,2]
[320344316,1711313489836,-835.37,0.00019726,2]
[320344317,1711313489845,-500.0,0.00019726,2]
[320344318,1711313489854,-577.53,0.00019726,2]
[320344319,1711313489864,-500.0,0.00019726,2]
[320344320,1711313489874,-1898.79,0.00019726,2]
[320344321,1711313489883,-1086.0,0.00019726,2]
[320344322,1711313489892,-500.0,0.00019726,2]
[320344323,1711313489902,-500.0,0.00019726,2]
[320344324,1711313489911,-500.0,0.00019726,2]
[320344325,1711313489920,-503.26915143,0.00019726,2]
[320344326,1711313489930,-509.96987585,0.00019726,2]
[320344327,1711313489940,-500.0,0.00019726,2]
[320344328,1711313489950,-500.0,0.00019726,2]
[320344329,1711313489959,-630.47,0.00019726,2]
[320344330,1711313489969,-2678.93,0.00019726,2]
[320344331,1711313489978,-450.13430778,0.00019726,2]
[320344332,1711313489988,-1373.79,0.00019726,2]
[320344333,1711313489997,-510.97573401,0.00019726,2]
[320344334,1711313490007,-942.64,0.00019726,2]
[320344335,1711313490017,-500.0,0.00019726,2]
[320344336,1711313490026,-505.8288923,0.00019726,2]
[320344337,1711313490036,-500.0,0.00019726,2]
[320344338,1711313490045,-500.0,0.00019726,2]
[320344339,1711313490055,-1019.26,0.00019726,2]
[320344340,1711313490064,-501.75270317,0.00019726,2]
[320344341,1711313490074,-302.52597,0.00019726,2]
[320344342,1711313490083,-302.52597,0.00019726,2]
[320344343,1711313490092,-509.49720845,0.00019726,2]
[320344344,1711313490102,-834.44,0.00019726,2]
[320344345,1711313490111,-500.0,0.00019726,2]
[320344346,1711313490121,-500.0,0.00019726,2]
[320344347,1711313490131,-302.52597,0.00019726,2]
[320344348,1711313490141,-500.0,0.00019726,2]
[320344349,1711313490150,-302.52597,0.00019726,2]
[320344350,1711313490160,-500.0,0.00019726,2]
[320344351,1711313490170,-500.0,0.00019726,2]
[320344352,1711313490180,-1253.49,0.00019726,2]
[320344353,1711313490189,-500.0,0.00019726,2]
[320344354,1711313490201,-522.80332105,0.00019726,2]
[320344355,1711313490211,-500.0,0.00019726,2]
[320344356,1711313490220,-500.0,0.00019726,2]
[320344357,1711313490229,-905.35,0.00019726,2]
[320344358,1711313490239,-500.0,0.00019726,2]
[320344359,1711313490249,-1106.07,0.00019726,2]
[320344360,1711313490258,-570.52,0.00019726,2]
[320344361,1711313490267,-500.0,0.00019726,2]
[320344362,1711313490281,-500.0,0.00019726,2]
[320344363,1711313490290,-500.0,0.00019726,2]
[320344364,1711313490300,-500.0,0.00019726,2]
[320344365,1711313490310,-500.0,0.00019726,2]
[320344366,1711313490319,-500.0,0.00019726,2]
[320344367,1711313490330,-625.12,0.00019726,2]
[320344368,1711313490341,-500.0,0.00019726,2]
[320344369,1711313490350,-500.0,0.00019726,2]
[320344370,1711313490361,-150.0,0.00019726,2]
[320344371,1711313490371,-151.0,0.00019726,2]
[320344372,1711313490380,-499.00227302,0.00019726,2]
[320344373,1711313490390,-500.0,0.00019726,2]
[320344374,1711313490399,-151.0,0.00019726,2]
[320344375,1711313490409,-500.0,0.00019726,2]
[320344376,1711313490419,-503.14143377,0.00019726,2]
[320344377,1711313490429,-500.0,0.00019726,2]
[320344378,1711313490438,-500.0,0.00019726,2]
[320344379,1711313490448,-1400.43,0.00019726,2]
[320344380,1711313490458,-662.42,0.00019726,2]
[320344381,1711313490468,-151.0,0.00019726,2]
[320344382,1711313490477,-500.0,0.00019726,2]
[320344383,1711313490487,-500.0,0.00019726,2]
[320344384,1711313490496,-500.0,0.00019726,2]
[320344385,1711313490506,-500.0,0.00019726,2]
[320344386,1711313490515,-500.0,0.00019726,2]
[320344387,1711313490525,-151.0,0.00019726,2]
[320344388,1711313490535,-151.0,0.00019726,2]
[320344389,1711313490545,-965.1,0.00019726,2]
[320344390,1711313490555,-500.0,0.00019726,2]
[320344391,1711313490564,-500.0,0.00019726,2]
[320344392,1711313490575,-1834.0,0.00019726,2]
[320344393,1711313490585,-500.0,0.00019726,2]
[320344394,1711313490595,-500.0,0.00019726,2]
[320344395,1711313490605,-500.0,0.00019726,2]
[320344396,1711313490615,-500.0,0.00019726,2]
[320344397,1711313490625,-2383.58,0.00019726,2]
[320344398,1711313490634,-2387.04,0.00019726,2]
[320344399,1711313490644,-1309.56,0.00019726,2]
[320344400,1711313490654,-153.53,0.00019726,2]
[320344401,1711313490663,-500.0,0.00019726,2]
[320344402,1711313490673,-2191.49,0.00019726,2]
[320344403,1711313490682,-514.18743706,0.00019726,2]
[320344404,1711313490692,-500.0,0.00019726,2]
[320344405,1711313490703,-500.0,0.00019726,2]
[320344406,1711313490713,-500.0,0.00019726,2]
[320344407,1711313490722,-500.0,0.00019726,2]
[320344408,1711313490732,-500.0,0.00019726,2]
[320344409,1711313490741,-500.0,0.00019726,2]
[320344410,1711313490752,-500.0,0.00019726,2]
[320344411,1711313490763,-500.0,0.00019726,2]
[320344412,1711313490776,-2001.39,0.00019726,2]
[320344413,1711313490785,-500.0,0.00019726,2]
[320344414,1711313490795,-500.0,0.00019726,2]
[320344415,1711313490805,-500.0,0.00019726,2]
[320344416,1711313490816,-502.57305152,0.00019726,2]
[320344417,1711313490827,-4028.16,0.00019726,2]
[320344418,1711313490837,-500.0,0.00019726,2]
[320344419,1711313490852,-500.0,0.00019726,2]
[320344420,1711313490863,-816.41,0.00019726,2]
[320344421,1711313490873,-500.0,0.00019726,2]
[320344422,1711313490884,-1587.22,0.00019726,2]
[320344423,1711313490893,-195.516076,0.00019726,2]
[320344424,1711313490903,-195.516076,0.00019726,2]
[320344425,1711313490912,-500.0,0.00019726,2]
[320344426,1711313490923,-1011.58,0.00019726,2]
[320344427,1711313490932,-500.0,0.00019726,2]
[320344428,1711313490943,-195.516076,0.00019726,2]
[320344429,1711313490955,-500.0,0.00019726,2]
[320344430,1711313490965,-195.516076,0.00019726,2]
[320344431,1711313490976,-500.0,0.00019726,2]
[320344432,1711313490988,-653.67,0.00019726,2]
[320344433,1711313490998,-512.64,0.00019726,2]
[320344434,1711313491007,-887.64,0.00019726,2]
[320344435,1711313491016,-1936.32,0.00019726,2]
[320344436,1711313491026,-1692.53,0.00019726,2]
[320344437,1711313491035,-1647.5,0.00019726,2]
[320344438,1711313491045,-500.0,0.00019726,2]
[320344439,1711313491055,-500.0,0.00019726,2]
[320344440,1711313491065,-172.4697,0.00019726,2]
[320344441,1711313491074,-172.4697,0.00019726,2]
[320344442,1711313491084,-500.0,0.00019726,2]
[320344443,1711313491093,-500.0,0.00019726,2]
[320344444,1711313491103,-500.0,0.00019726,2]
[320344445,1711313491113,-1090.22,0.00019726,2]
[320344446,1711313491122,-500.0,0.00019726,2]
[320344447,1711313491132,-500.0,0.00019726,2]
[320344448,1711313491142,-172.4697,0.00019726,2]
[320344449,1711313491151,-500.0,0.00019726,2]
[320344450,1711313491161,-172.4697,0.00019726,2]
[320344451,1711313491170,-500.0,0.00019726,2]
[320344452,1711313491179,-283.13315544,0.00019726,2]
[320344453,1711313491189,-500.0,0.00019726,2]
[320344454,1711313491198,-958.25,0.00019726,2]
[320344455,1711313491210,-500.0,0.00019726,2]
[320344456,1711313491219,-500.0,0.00019726,2]
[320344457,1711313491229,-500.0,0.00019726,2]
[320344458,1711313491238,-151.0,0.00019726,2]
[320344459,1711313491248,-500.0,0.00019726,2]
[320344460,1711313491257,-421.593282,0.00019726,2]
[320344461,1711313491267,-151.0,0.00019726,2]
[320344462,1711313491276,-1987.03,0.00019726,2]
[320344463,1711313491285,-500.0,0.00019726,2]
[320344464,1711313491295,-421.593282,0.00019726,2]
[320344465,1711313491304,-500.0,0.00019726,2]
[320344466,1711313491314,-197.06559953,0.00019726,2]
[320344467,1711313491323,-223.4446,0.00019726,2]
[320344468,1711313491332,-223.4446,0.00019726,2]
[320344469,1711313491342,-500.0,0.00019726,2]
[320344470,1711313491352,-421.593282,0.00019726,2]
[320344471,1711313491362,-1822.57,0.00019726,2]
[320344472,1711313491371,-421.593282,0.00019726,2]
[320344473,1711313491380,-500.0,0.00019726,2]
[320344474,1711313491390,-500.0,0.00019726,2]
[320344475,1711313491399,-223.4446,0.00019726,2]
[320344476,1711313491409,-500.0,0.00019726,2]
[320344477,1711313491418,-500.0,0.00019726,2]
[320344478,1711313491427,-223.4446,0.00019726,2]
[320344479,1711313491437,-5285.62,0.00019726,2]
[320344480,1711313491446,-500.0,0.00019726,2]
[320344481,1711313491457,-3076.76,0.00019726,2]
[320344482,1711313491466,-803.03,0.00019726,2]
[320344483,1711313491476,-505.94917417,0.00019726,2]
[320344484,1711313491485,-500.0,0.00019726,2]
[320344485,1711313491495,-500.0,0.00019726,2]
[320344486,1711313491504,-500.0,0.00019726,2]
[320344487,1711313491514,-1398.84,0.00019726,2]
[320344488,1711313491523,-503.79398697,0.00019726,2]
[320344489,1711313491533,-500.0,0.00019726,2]
[320344490,1711313491543,-500.0,0.00019726,2]
[320344491,1711313491553,-500.0,0.00019726,2]
[320344492,1711313491563,-2115.4,0.00019726,2]
[320344493,1711313491572,-500.0,0.00019726,2]
[320344494,1711313491582,-500.0,0.00019726,2]
[320344495,1711313491591,-500.0,0.00019726,2]
[320344496,1711313491601,-500.0,0.00019726,2]
[320344497,1711313491610,-500.0,0.00019726,2]
[320344498,1711313491619,-593.42,0.00019726,2]
[320344499,1711313491628,-500.0,0.00019726,2]
[320344500,1711313491637,-500.0,0.00019726,2]
[320344501,1711313491646,-500.0,0.00019726,2]
[320344502,1711313491656,-500.0,0.00019726,2]
[320344503,1711313491665,-1106.86,0.00019726,2]
[320344504,1711313491675,-1563.14,0.00019726,2]
[320344505,1711313491684,-502.60424034,0.00019726,2]
[320344506,1711313491694,-500.0,0.00019726,2]
[320344507,1711313491705,-500.0,0.00019726,2]
[320344508,1711313491715,-500.0,0.00019726,2]
[320344509,1711313491724,-500.0,0.00019726,2]
[320344510,1711313491733,-1685.65,0.00019726,2]
[320344511,1711313491742,-613.66,0.00019726,2]
[320344512,1711313491752,-500.0,0.00019726,2]
[320344513,1711313491762,-500.0,0.00019726,2]
[320344514,1711313491774,-1437.45,0.00019726,2]
[320344515,1711313491784,-2893.92,0.00019726,2]
[320344516,1711313491793,-500.0,0.00019726,2]
[320344517,1711313491802,-2274.12,0.00019726,2]
[320344518,1711313491813,-500.0,0.00019726,2]
[320344519,1711313491822,-880.55,0.00019726,2]
[320344520,1711313491831,-151.0,0.00019726,2]
[320344521,1711313491841,-151.0,0.00019726,2]
[320344522,1711313491850,-500.0,0.00019726,2]
[320344523,1711313491860,-500.5007559,0.00019726,2]
[320344524,1711313491870,-500.0,0.00019726,2]
[320344525,1711313491879,-500.0,0.00019726,2]
[320344526,1711313491888,-500.0,0.00019726,2]
[320344527,1711313491898,-724.75,0.00019726,2]
[320344528,1711313491907,-151.0,0.00019726,2]
[320344529,1711313491917,-167.221896,0.00019726,2]
[320344530,1711313491926,-500.0,0.00019726,2]
[320344531,1711313491936,-1962.52,0.00019726,2]
[320344532,1711313491945,-582.13643469,0.00019726,2]
[320344533,1711313491956,-502.18901135,0.00019726,2]
[320344534,1711313491966,-1112.56,0.00019726,2]
[320344535,1711313491975,-606.78,0.00019726,2]
[320344536,1711313491987,-500.0,0.00019726,2]
[320344537,1711313491996,-866.38,0.00019726,2]
[320344538,1711313492006,-1177.58,0.00019726,2]
[320344539,1711313492015,-500.0,0.00019726,2]
[320344540,1711313492025,-500.0,0.00019726,2]
[320344541,1711313492035,-500.0,0.00019726,2]
[320344542,1711313492044,-1784.27,0.00019726,2]
[320344543,1711313492054,-500.0,0.00019726,2]
[320344544,1711313492064,-657.66,0.00019726,2]
[320344545,1711313492074,-500.0,0.00019726,2]
[320344546,1711313492083,-4122.14,0.00019726,2]
[320344547,1711313492093,-153.515002,0.00019726,2]
[320344548,1711313492103,-500.0,0.00019726,2]
[320344549,1711313492112,-151.0,0.00019726,2]
[320344550,1711313492121,-1355.77,0.00019726,2]
[320344551,1711313492131,-151.0,0.00019726,2]
[320344552,1711313492140,-567.19,0.00019726,2]
[320344553,1711313492149,-501.69859994,0.00019726,2]
[320344554,1711313492159,-153.045836,0.00019726,2]
[320344555,1711313492168,-500.0,0.00019726,2]
[320344556,1711313492178,-839.84,0.00019726,2]
[320344557,1711313492187,-2779.6,0.00019726,2]
[320344558,1711313492196,-151.0,0.00019726,2]
[320344559,1711313492209,-2714.09,0.00019726,2]
[320344560,1711313492218,-151.0,0.00019726,2]
[320344561,1711313492227,-2345.55,0.00019726,2]
[320344562,1711313492236,-996.46,0.00019726,2]
[320344563,1711313492246,-611.01,0.00019726,2]
[320344564,1711313492255,-500.0,0.00019726,2]
[320344565,1711313492265,-507.70168795,0.00019726,2]
[320344566,1711313492274,-673.93,0.00019726,2]
[320344567,1711313492283,-500.0,0.00019726,2]
[320344568,1711313492293,-2200.99,0.00019726,2]
[320344569,1711313492302,-500.0,0.00019726,2]
[320344570,1711313492311,-500.0,0.00019726,2]
[320344571,1711313492321,-500.0,0.00019726,2]
[320344572,1711313492330,-500.0,0.00019726,2]
[320344573,1711313492339,-151.0,0.00019726,2]
[320344574,1711313492348,-500.0,0.00019726,2]
[320344575,1711313492357,-151.0,0.00019726,2]
[320344576,1711313492366,-11847.9,0.00019726,2]
[320344577,1711313492376,-1031.46,0.00019726,2]
[320344578,1711313492385,-1139.38,0.00019726,2]
[320344579,1711313492394,-2748.76,0.00019726,2]
[320344580,1711313492404,-500.0,0.00019726,2]
[320344581,1711313492413,-500.0,0.00019726,2]
[320344582,1711313492422,-500.0,0.00019726,2]
[320344583,1711313492431,-151.0,0.00019726,2]
[320344584,1711313492443,-151.0,0.00019726,2]
[320344585,1711313492459,-500.0,0.00019726,2]
[320344586,1711313492473,-2102.93,0.00019726,2]
[320344587,1711313492486,-1661.95,0.00019726,2]
[320344588,1711313492501,-500.0,0.00019726,2]
[320344589,1711313492511,-583.02,0.00019726,2]
[320344590,1711313492522,-500.0,0.00019726,2]
[320344591,1711313492534,-500.0,0.00019726,2]
[320344592,1711313492546,-2619.58,0.00019726,2]
[320344593,1711313492558,-821.76,0.00019726,2]
[320344594,1711313492570,-500.0,0.00019726,2]
[320344595,1711313492583,-500.0,0.00019726,2]
[320344596,1711313492596,-660.67,0.00019726,2]
[320344597,1711313492608,-2735.23,0.00019726,2]
[320344598,1711313492620,-1283.28,0.00019726,2]
[320344599,1711313492630,-632.2,0.00019726,2]
[320344600,1711313492641,-500.0,0.00019726,2]
[320344601,1711313492653,-500.0,0.00019726,2]
[320344602,1711313492665,-500.0,0.00019726,2]
[320344603,1711313492676,-659.18,0.00019726,2]
[320344604,1711313492688,-2032.65,0.00019726,2]
[320344605,1711313492700,-500.0,0.00019726,2]
[320344606,1711313492713,-498.22746871,0.00019726,2]
[320344607,1711313492726,-500.0,0.00019726,2]
[320344608,1711313492737,-2803.5,0.00019726,2]
[320344609,1711313492747,-502.61079828,0.00019726,2]
[320344610,1711313492760,-525.52551372,0.00019726,2]
[320344611,1711313492774,-1595.21,0.00019726,2]
[320344612,1711313492787,-867.31,0.00019726,2]
[320344613,1711313492799,-500.0,0.00019726,2]
[320344614,1711313492812,-500.0,0.00019726,2]
[320344615,1711313492823,-504.21402242,0.00019726,2]
[320344616,1711313492834,-500.0,0.00019726,2]
[320344617,1711313492847,-500.0,0.00019726,2]
[320344618,1711313492858,-943.85,0.00019726,2]
[320344619,1711313492870,-500.0,0.00019726,2]
[320344620,1711313492882,-500.0,0.00019726,2]
[320344621,1711313492894,-2368.63,0.00019726,2]
[320344622,1711313492907,-500.0,0.00019726,2]
[320344623,1711313492920,-500.0,0.00019726,2]
[320344624,1711313492933,-518.18,0.00019726,2]
[320344625,1711313492945,-151.0,0.00019726,2]
[320344626,1711313492958,-500.0,0.00019726,2]
[320344627,1711313492969,-151.0,0.00019726,2]
[320344628,1711313492979,-500.0,0.00019726,2]
[320344629,1711313492990,-1841.14,0.00019726,2]
[320344630,1711313493001,-500.0,0.00019726,2]
[320344631,1711313493012,-1347.09,0.00019726,2]
[320344632,1711313493024,-500.0,0.00019726,2]
[320344633,1711313493036,-500.0,0.00019726,2]
[320344634,1711313493046,-1018.95,0.00019726,2]
[320344635,1711313493059,-532.65,0.00019726,2]
[320344636,1711313493071,-2278.29,0.00019726,2]
[320344637,1711313493084,-500.0,0.00019726,2]
[320344638,1711313493094,-500.0,0.00019726,2]
[320344639,1711313493105,-500.0,0.00019726,2]
[320344640,1711313493115,-588.83,0.00019726,2]
[320344641,1711313493126,-947.95,0.00019726,2]
[320344642,1711313493137,-500.0,0.00019726,2]
[320344643,1711313493149,-500.0,0.00019726,2]
[320344644,1711313493159,-500.0,0.00019726,2]
[320344645,1711313493171,-4680.38,0.00019726,2]
[320344646,1711313493182,-500.0,0.00019726,2]
[320344647,1711313493193,-500.0,0.00019726,2]
[320344648,1711313493204,-500.0,0.00019726,2]
[320344649,1711313493215,-502.99386173,0.00019726,2]
[320344650,1711313493227,-2296.14,0.00019726,2]
[320344651,1711313493238,-536.10794696,0.00019726,2]
[320344652,1711313493249,-3896.68,0.00019726,2]
[320344653,1711313493261,-1075.49,0.00019726,2]
[320344654,1711313493273,-500.0,0.00019726,2]
[320344655,1711313493285,-1460.17,0.00019726,2]
[320344656,1711313493297,-507.02950064,0.00019726,2]
[320344657,1711313493308,-2264.98,0.00019726,2]
[320344658,1711313493319,-2582.14,0.00019726,2]
[320344659,1711313493330,-500.0,0.00019726,2]
[320344660,1711313493341,-494.58860906,0.00019726,2]
[320344661,1711313493352,-1232.47,0.00019726,2]
[320344662,1711313493363,-500.0,0.00019726,2]
[320344663,1711313493374,-500.0,0.00019726,2]
[320344664,1711313493386,-500.0,0.00019726,2]
[320344665,1711313493396,-500.0,0.00019726,2]
[320344666,1711313493408,-648.34068814,0.00019726,2]
[320344667,1711313493419,-1663.55,0.00019726,2]
[320344668,1711313493430,-1714.25,0.00019726,2]
[320344669,1711313493451,-500.0,0.00019726,2]
[320344670,1711313493466,-575.06,0.00019726,2]
[320344671,1711313493479,-12288.26,0.00019726,2]
[320344672,1711313493492,-500.0,0.00019726,2]
[320344673,1711313493504,-500.0,0.00019726,2]
[320344674,1711313493517,-460.51735363,0.00019726,2]
[320344675,1711313493531,-364.96,0.00019726,2]
[320344676,1711313493543,-1737.37,0.00019726,2]
[320344677,1711313493556,-505.9122871,0.00019726,2]
[320344678,1711313493569,-904.04,0.00019726,2]
[320344679,1711313493581,-151.0,0.00019726,2]
[320344680,1711313493594,-151.0,0.00019726,2]
[320344681,1711313493606,-501.75651647,0.00019726,2]
[320344682,1711313493618,-1672.9,0.00019726,2]
[320344683,1711313493630,-1007.81,0.00019726,2]
[320344684,1711313493642,-500.0,0.00019726,2]
[320344685,1711313493654,-500.0,0.00019726,2]
[320344686,1711313493666,-500.0,0.00019726,2]
[320344687,1711313493677,-500.0,0.00019726,2]
[320344688,1711313493690,-151.0,0.00019726,2]
[320344689,1711313493701,-151.0,0.00019726,2]
[320344690,1711313493714,-847.27,0.00019726,2]
[320344691,1711313493726,-500.0,0.00019726,2]
[320344692,1711313493740,-500.0,0.00019726,2]
[320344693,1711313493752,-2131.38,0.00019726,2]
[320344694,1711313493766,-2913.0,0.00019726,2]
[320344695,1711313493778,-2017.65,0.00019726,2]
[320344696,1711313493790,-1135.55,0.00019726,2]
[320344697,1711313493802,-500.0,0.00019726,2]
[320344698,1711313493814,-2183.22,0.00019726,2]
[320344699,1711313493826,-7153.85,0.00019726,2]
[320344700,1711313493839,-500.0,0.00019726,2]
[320344701,1711313493851,-1765.7,0.00019726,2]
[320344702,1711313493862,-1117.52,0.00019726,2]
[320344703,1711313493875,-1214.25,0.00019726,2]
[320344704,1711313493887,-635.61,0.00019726,2]
[320344705,1711313493900,-831.48,0.00019726,2]
[320344706,1711313493913,-3295.46,0.00019726,2]
[320344707,1711313493924,-500.0,0.00019726,2]
[320344708,1711313493936,-843.07,0.00019726,2]
[320344709,1711313493947,-151.0,0.00019726,2]
[320344710,1711313493960,-151.0,0.00019726,2]
[320344711,1711313493972,-500.0,0.00019726,2]
[320344712,1711313493983,-500.0,0.00019726,2]
[320344713,1711313493995,-151.0,0.00019726,2]
[320344714,1711313494007,-151.0,0.00019726,2]
[320344715,1711313494021,-1129.44,0.00019726,2]
[320344716,1711313494034,-500.0,0.00019726,2]
[320344717,1711313494045,-151.0,0.00019726,2]
[320344718,1711313494056,-151.0,0.00019726,2]
[320344719,1711313494068,-7576.31,0.00019726,2]
[320344720,1711313494080,-8167.56,0.00019726,2]
[320344721,1711313494091,-500.0,0.00019726,2]
[320344722,1711313494103,-1929.0,0.00019726,2]
[320344723,1711313494116,-500.0,0.00019726,2]
[320344724,1711313494128,-500.0,0.00019726,2]
[320344725,1711313494147,-2407.56,0.00019726,2]
[320344726,1711313494161,-689.15,0.00019726,2]
[320344727,1711313494175,-500.0,0.00019726,2]
[320344728,1711313494189,-500.0,0.00019726,2]
[320344729,1711313494202,-500.0,0.00019726,2]
[320344730,1711313494215,-500.0,0.00019726,2]
[320344731,1711313494226,-500.0,0.00019726,2]
[320344732,1711313494239,-500.0,0.00019726,2]
[320344733,1711313494251,-500.0,0.00019726,2]
[320344734,1711313494263,-1470.85,0.00019726,2]
[320344735,1711313494275,-2010.38,0.00019726,2]
[320344736,1711313494287,-1609.31,0.00019726,2]
[320344737,1711313494298,-500.0,0.00019726,2]
[320344738,1711313494310,-541.2,0.00019726,2]
[320344739,1711313494321,-595.69,0.00019726,2]
[320344740,1711313494332,-2353.18,0.00019726,2]
[320344741,1711313494342,-1617.49,0.00019726,2]
[320344742,1711313494353,-500.0,0.00019726,2]
[320344743,1711313494364,-2184.37,0.00019726,2]
[320344744,1711313494375,-868.62,0.00019726,2]
[320344745,1711313494386,-850.86,0.00019726,2]
[320344746,1711313494396,-218.55882,0.00019726,2]
[320344747,1711313494407,-1699.3,0.00019726,2]
[320344748,1711313494418,-505.00230103,0.00019726,2]
[320344749,1711313494428,-506.6644449,0.00019726,2]
[320344750,1711313494438,-500.0,0.00019726,2]
[320344751,1711313494448,-2079.02,0.00019726,2]
[320344752,1711313494461,-177.11030377,0.00019726,2]
[320344753,1711313494471,-500.0,0.00019726,2]
[320344754,1711313494481,-7304.19,0.00019726,2]
[320344755,1711313494492,-500.0,0.00019726,2]
[320344756,1711313494502,-2957.8,0.00019726,2]
[320344757,1711313494513,-1434.08,0.00019726,2]
[320344758,1711313494523,-500.0,0.00019726,2]
[320344759,1711313494535,-504.22824714,0.00019726,2]
[320344760,1711313494545,-500.0,0.00019726,2]
[320344761,1711313494556,-500.0,0.00019726,2]
[320344762,1711313494567,-500.0,0.00019726,2]
[320344763,1711313494577,-500.0,0.00019726,2]
[320344764,1711313494589,-500.0,0.00019726,2]
[320344765,1711313494599,-500.0,0.00019726,2]
[320344766,1711313494610,-516.18,0.00019726,2]